bitfinex-derivatives/quotes_BTCF0:USTF0_20260113
["timestamp","ask_amount","ask_price","bid_price","bid_amount"]
[1768262999640,0.109512,91412.0,91400.0,0.14962179]
[1768263000130,0.09856,91412.0,91400.0,0.211252]
[1768263000334,0.09856,91412.0,91400.0,0.24569254]
[1768263001037,0.09856,91412.0,91402.0,0.06163021]
[1768263002934,0.07277056,91411.0,91390.0,0.00016415]
[1768263003134,0.07277056,91410.0,91390.0,0.00016415]
[1768263003334,0.07277056,91408.0,91390.0,0.00016415]
[1768263003534,0.04717541,91407.0,91390.0,0.00016415]
[1768263003938,0.010953,91407.0,91390.0,0.06179436]
[1768263004142,0.010953,91407.0,91390.0,0.21141615]
[1768263004335,0.03582733,91410.0,91391.0,0.06163021]
[1768263004535,0.04677933,91410.0,91392.0,0.0630709]
[1768263004945,0.010952,91411.0,91393.0,0.0630709]
[1768263005244,0.010952,91411.0,91400.0,0.21269269]
[1768263005747,0.09856,91410.0,91401.0,0.0630709]
[1768263006746,0.09856,91410.0,91400.0,0.03352584]
[1768263006942,0.09856,91410.0,91397.0,0.0630709]
[1768263007148,0.010952,91409.0,91397.0,0.0630709]
[1768263008849,0.09856,91410.0,91397.0,0.0630709]
[1768263009057,0.09856,91410.0,91395.0,0.03352584]
[1768263009257,0.24818179,91410.0,91395.0,0.03352584]
[1768263010556,0.010953,91407.0,91395.0,0.03352584]
[1768263011959,0.010953,91409.0,91395.0,0.03352584]
[1768263013151,0.010953,91408.0,91395.0,0.03352584]
[1768263013360,0.010953,91408.0,91398.0,0.05969452]
[1768263013544,0.010953,91408.0,91398.0,0.0327201]
[1768263016256,0.09856,91410.0,91398.0,0.0327201]
[1768263016656,0.09856,91410.0,91398.0,0.09241462]
[1768263017253,0.09856,91413.0,91405.0,0.05969452]
[1768263017455,0.00016415,91418.0,91406.0,0.0327201]
[1768263017655,0.09856,91415.0,91406.0,0.0327201]
[1768263018452,0.09856,91421.0,91411.0,0.0327201]
[1768263018759,0.09856,91421.0,91410.0,0.05969452]
[1768263018760,0.09856,91421.0,91413.0,0.0327201]
[1768263019853,0.09856,91420.0,91413.0,0.0327201]
[1768263020056,0.0359903,91420.0,91413.0,0.0327201]
[1768263020255,0.00546899,91425.0,91416.0,0.0327201]
[1768263022063,0.09856,91427.0,91418.0,0.0327201]
[1768263022262,0.09856,91427.0,91420.0,0.0327201]
[1768263025759,0.09856,91427.0,91408.0,0.00016415]
[1768263025760,0.0323071,91425.0,91408.0,0.00016415]
[1768263026065,0.09856,91427.0,91398.0,0.09856]
[1768263026066,0.06225703,91418.0,91398.0,0.09856]
[1768263026361,0.010952,91412.0,91395.0,0.09856]
[1768263026862,0.010952,91415.0,91395.0,0.09856]
[1768263027061,0.010951,91418.0,91397.0,0.010954]
[1768263027359,0.010951,91418.0,91395.0,0.109514]
[1768263027756,0.010951,91418.0,91397.0,0.04602188]
[1768263028056,0.010951,91418.0,91400.0,0.04602188]
[1768263029058,0.010951,91418.0,91395.0,0.109514]
[1768263029059,0.010951,91418.0,91401.0,0.04654834]
[1768263029358,0.07320803,91418.0,91396.0,0.01382824]
[1768263029562,0.07320803,91418.0,91395.0,0.0327201]
[1768263029563,0.010952,91416.0,91397.0,0.0483558]
[1768263029762,0.010952,91416.0,91393.0,0.109514]
[1768263029763,0.06225703,91418.0,91399.0,0.0483558]
[1768263030667,0.010952,91417.0,91399.0,0.0483558]
[1768263031661,0.010952,91417.0,91400.0,0.05007985]
[1768263031861,0.06225703,91418.0,91405.0,0.00547019]
[1768263033169,0.010951,91420.0,91405.0,0.00547019]
[1768263033367,0.09456413,91421.0,91405.0,0.00547019]
[1768263033563,0.010951,91423.0,91405.0,0.00547019]
[1768263034366,0.07320803,91423.0,91405.0,0.00547019]
[1768263034868,0.07320803,91423.0,91405.0,0.0591032]
[1768263036264,0.010951,91421.0,91405.0,0.0591032]
[1768263036961,0.06049329,91456.0,91406.0,0.05424553]
[1768263037164,0.010948,91449.0,91426.0,0.01915559]
[1768263037368,0.010948,91449.0,91407.0,0.09856]
[1768263037369,0.09856,91448.0,91429.0,0.02425895]
[1768263037672,0.0054666,91465.0,91429.0,0.02425895]
[1768263037673,0.09856,91447.0,91429.0,0.05934889]
[1768263037973,0.09856,91446.0,91429.0,0.05934889]
[1768263038270,0.09856,91446.0,91429.0,0.03508994]
[1768263039167,0.16283508,91446.0,91429.0,0.03508994]
[1768263039671,0.09856,91446.0,91431.0,0.03508994]
[1768263040277,0.09856,91446.0,91434.0,0.03508994]
[1768263040577,0.09856,91446.0,91434.0,0.07138104]
[1768263045375,0.09856,91446.0,91434.0,0.03508994]
[1768263052981,0.09856,91446.0,91432.0,0.03751768]
[1768263053181,0.09856,91446.0,91431.0,0.01095]
[1768263054483,0.09856,91446.0,91433.0,0.01095]
[1768263054883,0.06427508,91445.0,91430.0,0.01095]
[1768263055387,0.06427508,91445.0,91429.0,0.01095]
[1768263057886,0.06427508,91445.0,91431.0,0.01095]
[1768263061887,0.06427508,91445.0,91428.0,0.00016406]
[1768263062090,0.06427508,91445.0,91432.0,0.01095]
[1768263062980,0.06427508,91445.0,91428.0,0.00016406]
[1768263063185,0.06427508,91445.0,91433.0,0.010949]
[1768263064581,0.03047806,91444.0,91428.0,0.00016406]
[1768263064787,0.03047806,91444.0,91397.0,0.010954]
[1768263064788,0.06992232,91431.0,91419.0,0.09852]
[1768263064988,0.06992232,91431.0,91419.0,0.010951]
[1768263065296,0.06992232,91431.0,91418.0,0.09852]
[1768263065687,0.06992232,91431.0,91420.0,0.010951]
[1768263065895,0.06992232,91431.0,91422.0,0.010951]
[1768263066396,0.06992232,91431.0,91421.0,0.010951]
[1768263066796,0.06992232,91431.0,91418.0,0.09852]
[1768263067295,0.06992232,91431.0,91422.0,0.010951]
[1768263067592,0.010949,91442.0,91424.0,0.010951]
[1768263067897,0.06992232,91436.0,91424.0,0.010951]
[1768263068389,0.10040038,91436.0,91424.0,0.010951]
[1768263068698,0.06992232,91432.0,91418.0,0.09852]
[1768263068994,0.06992232,91432.0,91418.0,0.109471]
[1768263069897,0.06992232,91432.0,91418.0,0.09852]
[1768263071296,0.01095,91428.0,91411.0,0.03268645]
[1768263071502,0.06992232,91420.0,91405.0,0.10399019]
[1768263071803,0.08087432,91417.0,91405.0,0.00547019]
[1768263071991,0.06992232,91417.0,91402.0,0.09852]
[1768263073002,0.0981557,91421.0,91402.0,0.09852]
[1768263073395,0.06767764,91421.0,91402.0,0.18731513]
[1768263074502,0.06767764,91421.0,91405.0,0.010953]
[1768263076701,0.06767764,91421.0,91406.0,0.010953]
[1768263076902,0.06767764,91421.0,91403.0,0.09015568]
[1768263077101,0.06767764,91421.0,91403.0,0.10110868]
[1768263078198,0.010949,91437.0,91403.0,0.10110868]
[1768263078199,0.010944,91478.0,91413.0,0.010952]
[1768263078392,0.00087987,91465.0,91444.0,0.05552504]
[1768263078699,0.00087987,91465.0,91414.0,1.04368]
[1768263078700,0.06767764,91472.0,91452.0,0.08722836]
[1768263079202,0.06767764,91472.0,91453.0,0.03174939]
[1768263080204,0.06767764,91468.0,91450.0,0.010947]
[1768263080395,0.06767764,91468.0,91449.0,0.13030939]
[1768263080999,0.06767764,91468.0,91449.0,0.18462477]
[1768263081400,0.06767764,91468.0,91450.0,0.16037617]
[1768263081807,0.06767764,91468.0,91450.0,0.16054023]
[1768263082001,0.06767764,91468.0,91455.0,0.010947]
[1768263083404,0.09690788,91468.0,91450.0,0.16054123]
[1768263083603,0.06767764,91457.0,91444.0,0.09852]
[1768263083802,0.14942917,91460.0,91444.0,0.09852]
[1768263083803,0.06767764,91455.0,91444.0,0.09852]
[1768263084006,0.09690788,91455.0,91441.0,0.010949]
[1768263084398,0.06762764,91454.0,91441.0,0.010949]
[1768263085208,0.09685788,91454.0,91441.0,0.010949]
[1768263085403,0.02923024,91454.0,91441.0,0.010949]
[1768263086206,0.02923024,91454.0,91436.0,0.010949]
[1768263086411,0.06767764,91453.0,91436.0,0.010949]
[1768263086609,0.06767764,91453.0,91440.0,0.010949]
[1768263086807,0.06767764,91453.0,91436.0,0.010949]
[1768263087312,0.06767764,91453.0,91440.0,0.010949]
[1768263087502,0.06767764,91453.0,91432.0,0.03174939]
[1768263087702,0.06767764,91453.0,91434.0,0.010949]
[1768263088103,0.06767764,91453.0,91437.0,0.010949]
[1768263090912,0.06767764,91453.0,91434.0,0.010949]
[1768263091104,0.06767764,91449.0,91434.0,0.010949]
[1768263091302,0.09690788,91449.0,91434.0,0.010949]
[1768263091502,0.06767764,91448.0,91434.0,0.010949]
[1768263092807,0.09690788,91448.0,91434.0,0.00548001]
[1768263093200,0.06767764,91447.0,91434.0,0.00548001]
[1768263094211,0.06767764,91447.0,91436.0,0.010949]
[1768263095914,0.06767764,91447.0,91438.0,0.010949]
[1768263096314,0.06767764,91447.0,91435.0,0.010949]
[1768263097910,0.06767764,91447.0,91437.0,0.010949]
[1768263098614,0.06767764,91447.0,91434.0,0.010949]
[1768263098818,0.06767764,91447.0,91436.0,0.010949]
[1768263099013,0.06798922,91454.0,91440.0,0.010949]
[1768263099210,0.09725012,91454.0,91440.0,0.010949]
[1768263099410,0.06798922,91453.0,91442.0,0.010948]
[1768263100017,0.06798922,91453.0,91440.0,0.14942917]
[1768263101421,0.06798922,91453.0,91443.0,0.010948]
[1768263102619,0.09725012,91453.0,91443.0,0.010948]
[1768263102821,0.06798922,91452.0,91440.0,0.16037817]
[1768263104214,0.09725012,91451.0,91432.0,0.09852]
[1768263104416,0.06798922,91450.0,91437.0,0.010949]
[1768263104716,0.06798922,91450.0,91432.0,0.09852]
[1768263105119,0.06798922,91450.0,91436.0,0.010949]
[1768263105331,0.06798922,91444.0,91418.0,0.12758627]
[1768263105513,0.06798922,91433.0,91418.0,0.02986678]
[1768263107926,0.06798922,91433.0,91420.0,0.14942917]
[1768263110328,0.06798922,91433.0,91418.0,0.02986678]
[1768263113629,0.06798922,91433.0,91419.0,0.010951]
[1768263114138,0.06798922,91433.0,91420.0,0.14942917]
[1768263116234,0.06798922,91433.0,91419.0,0.010951]
[1768263118440,0.00016406,91435.0,91420.0,0.02986678]
[1768263118643,0.06815328,91435.0,91420.0,0.02986678]
[1768263118826,0.06815328,91435.0,91420.0,0.17929595]
[1768263120739,0.06815328,91435.0,91421.0,0.02986678]
[1768263123745,0.06815328,91435.0,91416.0,0.02986678]
[1768263123746,0.07910228,91435.0,91416.0,0.02986678]
[1768263124746,0.07910228,91435.0,91406.0,0.17693542]
[1768263124747,0.010951,91419.0,91406.0,0.17693542]
[1768263124942,0.07326617,91418.0,91404.0,0.09852]
[1768263125245,0.07326617,91418.0,91405.0,0.00547019]
[1768263129640,0.02224953,91417.0,91396.0,0.02638928]
[1768263129943,0.02224953,91417.0,91398.0,0.11188107]
[1768263129944,0.07326617,91416.0,91398.0,0.11188107]
[1768263130146,0.07326617,91416.0,91400.0,0.14942917]
[1768263130326,0.07343023,91416.0,91400.0,0.14942917]
[1768263132844,0.07343023,91416.0,91404.0,0.010953]
[1768263133043,0.07343023,91416.0,91402.0,0.010953]
[1768263133740,0.07343023,91416.0,91404.0,0.010953]
[1768263133943,0.01118294,91450.0,91411.0,0.10265108]
[1768263133944,0.07419484,91429.0,91411.0,0.10265108]
[1768263134134,0.07419484,91434.0,91419.0,0.14942917]
[1768263134335,0.07419484,91432.0,91419.0,0.14942917]
[1768263135642,0.17275484,91432.0,91419.0,0.14942917]
[1768263136140,0.07419484,91431.0,91419.0,0.14942917]
[1768263136543,0.07419484,91431.0,91416.0,0.03926629]
[1768263136544,0.07419484,91431.0,91416.0,0.02831429]
[1768263137048,0.07419484,91431.0,91420.0,0.14942917]
[1768263140246,0.07419484,91431.0,91416.0,0.02831429]
[1768263144439,0.07419484,91431.0,91416.0,0.00016406]
[1768263144746,0.09856,91432.0,91417.0,0.02815023]
[1768263145152,0.17275484,91432.0,91417.0,0.02815023]
[1768263145344,0.00546899,91425.0,91417.0,0.02815023]
[1768263147552,0.17275484,91432.0,91417.0,0.02815023]
[1768263148749,0.07419484,91431.0,91417.0,0.02815023]
[1768263154753,0.07419484,91431.0,91416.0,0.00016406]
[1768263157656,0.08514484,91431.0,91416.0,0.00016406]
[1768263158542,0.07419484,91431.0,91416.0,0.00016406]
[1768263158757,0.07915385,91425.0,91412.0,0.0784775]
[1768263160961,0.07915385,91429.0,91413.0,0.0784775]
[1768263163361,0.07915385,91429.0,91415.0,0.0784775]
[1768263164860,0.09010385,91429.0,91415.0,0.0784775]
[1768263166061,0.07915385,91427.0,91415.0,0.0784775]
[1768263166263,0.07915385,91427.0,91414.0,0.0784775]
[1768263167057,0.09010385,91427.0,91414.0,0.0784775]
[1768263170665,0.07915385,91424.0,91414.0,0.0784775]
[1768263170866,0.0057126,91424.0,91414.0,0.0784775]
[1768263171164,0.0057126,91424.0,91407.0,0.02901687]
[1768263173064,0.07915385,91422.0,91406.0,0.09771949]
[1768263173368,0.07915385,91417.0,91405.0,0.00547019]
[1768263177572,0.09010585,91417.0,91405.0,0.00547019]
[1768263180272,0.09010585,91417.0,91398.0,0.10096707]
[1768263180570,0.07915385,91417.0,91399.0,0.02901687]
[1768263181866,0.010952,91416.0,91398.0,0.10096707]
[1768263182075,0.07915385,91403.0,91385.0,0.00547139]
[1768263182273,0.07915385,91401.0,91385.0,0.00547139]
[1768263182465,0.07915385,91399.0,91385.0,0.00547139]
[1768263182873,0.07915385,91397.0,91385.0,0.00547139]
[1768263184775,0.07718082,91401.0,91385.0,0.00547139]
[1768263184967,0.07718082,91401.0,91385.0,0.03353764]
[1768263188080,0.07701676,91399.0,91385.0,0.00547139]
[1768263188279,0.07701676,91395.0,91376.0,0.09856]
[1768263188575,0.09560581,91395.0,91376.0,0.09856]
[1768263188779,0.07701676,91395.0,91376.0,0.12662625]
[1768263188971,0.07701676,91395.0,91377.0,0.02806625]
[1768263191878,0.08797076,91395.0,91377.0,0.02806625]
[1768263192079,0.07701676,91395.0,91377.0,0.02806625]
[1768263194078,0.07768961,91393.0,91376.0,0.09856]
[1768263196878,0.07768961,91392.0,91375.0,0.010956]
[1768263197880,0.0950092,91392.0,91371.0,0.0280596]
[1768263198077,0.07768961,91384.0,91368.0,0.00013701]
[1768263198673,0.010956,91383.0,91368.0,0.00013701]
[1768263198872,0.07768961,91382.0,91368.0,0.00013701]
[1768263200782,0.07768961,91382.0,91365.0,0.01643059]
[1768263200983,0.07768961,91382.0,91365.0,0.00547259]
[1768263201382,0.09444291,91382.0,91365.0,0.00547259]
[1768263201776,0.07768961,91380.0,91365.0,0.00547259]
[1768263203286,0.07768961,91380.0,91368.0,0.010957]
[1768263204087,0.07768961,91380.0,91366.0,0.010958]
[1768263204983,0.07768961,91380.0,91368.0,0.010957]
[1768263205383,0.07768961,91380.0,91365.0,0.00547259]
[1768263206379,0.07768961,91380.0,91365.0,0.01643059]
[1768263206776,0.07768961,91380.0,91365.0,0.04449019]
[1768263207591,0.07768961,91380.0,91370.0,0.14971427]
[1768263208781,0.07768961,91380.0,91365.0,0.04449019]
[1768263209090,0.07768961,91380.0,91367.0,0.010957]
[1768263209281,0.07768961,91380.0,91370.0,0.14971427]
[1768263209891,0.07768961,91380.0,91370.0,0.16067127]
[1768263210399,8.37e-05,91381.0,91370.0,0.14971427]
[1768263210891,0.07777331,91381.0,91370.0,0.14971427]
[1768263211487,0.07777331,91381.0,91370.0,0.16067127]
[1768263211792,0.07777331,91381.0,91371.0,0.010957]
[1768263213090,0.08545922,91383.0,91372.0,0.0280596]
[1768263213300,2.2e-07,91383.0,91379.0,0.0390156]
[1768263213589,2.2e-07,91383.0,91371.0,0.22583246]
[1768263213590,0.0986,91393.0,91381.0,0.07611819]
[1768263213794,0.07768961,91399.0,91382.0,0.0280596]
[1768263213996,0.0986,91398.0,91382.0,0.0280596]
[1768263214182,0.07774292,91397.0,91382.0,0.0280596]
[1768263217097,0.07774292,91397.0,91382.0,0.0390156]
[1768263217792,0.07774292,91397.0,91383.0,0.0267763]
[1768263217988,5.331e-05,91397.0,91383.0,0.0267763]
[1768263220590,0.07724227,91397.0,91383.0,0.0267763]
[1768263228505,5.331e-05,91397.0,91383.0,0.0267763]
[1768263228710,0.09865331,91397.0,91387.0,0.0267763]
[1768263231505,5.331e-05,91397.0,91387.0,0.0267763]
[1768263232806,5.331e-05,91397.0,91381.0,0.0267763]
[1768263233414,5.331e-05,91397.0,91384.0,0.0267763]
[1768263241920,0.07718896,91393.0,91377.0,0.0267763]
[1768263242125,0.22690323,91390.0,91377.0,0.0267763]
[1768263242314,0.22690323,91390.0,91371.0,0.12449579]
[1768263242315,0.07718896,91389.0,91371.0,0.12449579]
[1768263242512,0.07718896,91389.0,91371.0,0.0267763]
[1768263242820,0.08814396,91389.0,91371.0,0.0267763]
[1768263243525,0.07718896,91389.0,91371.0,0.02694046]
[1768263243725,0.07718896,91388.0,91371.0,0.02694046]
[1768263244829,0.07718896,91388.0,91372.0,0.02520538]
[1768263245927,0.0986,91389.0,91375.0,0.02520538]
[1768263246329,0.0986,91389.0,91376.0,0.02520538]
[1768263246825,0.0986,91389.0,91378.0,0.02520538]
[1768263248428,0.0986,91389.0,91378.0,0.03616138]
[1768263248630,0.0986,91389.0,91379.0,0.02520538]
[1768263249728,0.0986,91389.0,91380.0,0.010956]
[1768263250033,0.0986,91389.0,91379.0,0.02520538]
[1768263253933,0.0986,91389.0,91380.0,0.010956]
[1768263256132,0.0986,91389.0,91379.0,0.02520538]
[1768263256524,0.0986,91389.0,91380.0,0.010956]
[1768263257130,0.0986,91389.0,91371.0,0.00016416]
[1768263257429,0.0986,91389.0,91372.0,0.02476375]
[1768263257430,0.09585331,91388.0,91372.0,0.02476375]
[1768263258234,0.08489831,91385.0,91372.0,0.02476375]
[1768263261034,0.08489831,91385.0,91371.0,0.00016416]
[1768263264437,0.08489831,91385.0,91371.0,0.02492791]
[1768263267145,0.08489831,91385.0,91372.0,0.03572075]
[1768263267548,0.08489831,91385.0,91372.0,0.02476375]
[1768263271053,0.08489831,91385.0,91372.0,0.03572075]
[1768263271444,0.08489831,91385.0,91372.0,0.02476375]
[1768263272157,0.08489831,91385.0,91375.0,0.010957]
[1768263273953,0.08489831,91385.0,91373.0,0.010957]
[1768263277656,0.08489831,91385.0,91375.0,0.010957]
[1768263280259,0.08489831,91385.0,91376.0,0.010956]
[1768263285966,0.08489831,91385.0,91377.0,0.010956]
[1768263293077,0.08489831,91385.0,91375.0,0.010957]
[1768263294083,0.08489831,91385.0,91376.0,0.010956]
[1768263295579,0.08489831,91385.0,91371.0,0.00016416]
[1768263295778,0.08489831,91385.0,91375.0,0.010956]
[1768263295975,0.08489831,91385.0,91372.0,0.010957]
[1768263296280,0.08489831,91385.0,91374.0,0.010957]
[1768263296778,0.08489831,91385.0,91371.0,0.01112116]
[1768263296986,0.08489831,91385.0,91371.0,0.00016416]
[1768263298482,0.11392639,91389.0,91365.0,0.00547259]
[1768263298483,0.08093032,91383.0,91365.0,0.00547259]
[1768263298684,0.09876416,91389.0,91361.0,0.02429002]
[1768263298685,0.08093032,91377.0,91361.0,0.010958]
[1768263298879,0.08093032,91377.0,91358.0,0.010959]
[1768263299087,0.08093032,91377.0,91356.0,0.02429002]
[1768263299774,0.08093032,91377.0,91357.0,0.03524902]
[1768263300272,0.08093032,91377.0,91358.0,0.02429002]
[1768263301186,0.08093032,91377.0,91359.0,0.03524802]
[1768263302189,0.08093032,91377.0,91359.0,0.02429002]
[1768263303387,0.0877975,91373.0,91353.0,0.02429002]
[1768263303587,0.0876572,91369.0,91349.0,0.0986]
[1768263303983,0.0876572,91369.0,91350.0,0.01096]
[1768263304179,0.08093032,91367.0,91350.0,0.01096]
[1768263306989,0.08093032,91367.0,91352.0,0.010959]
[1768263307487,0.08093032,91367.0,91344.0,0.0986]
[1768263307488,0.08093032,91367.0,91349.0,0.02274894]
[1768263307991,0.08093032,91367.0,91354.0,0.010959]
[1768263308895,0.08093032,91367.0,91356.0,0.010959]
[1768263310690,0.08093032,91367.0,91353.0,0.010959]
[1768263311686,0.08093032,91367.0,91349.0,0.02274894]
[1768263311895,0.08093032,91367.0,91350.0,0.02274894]
[1768263313588,0.08093032,91367.0,91354.0,0.010959]
[1768263314997,0.08093032,91367.0,91351.0,0.0229574]
[1768263315199,0.00016416,91368.0,91360.0,0.010958]
[1768263315505,0.00016416,91368.0,91359.0,0.010958]
[1768263316290,0.00016416,91368.0,91360.0,0.010958]
[1768263316697,0.00016416,91368.0,91358.0,0.010959]
[1768263317200,0.00016416,91368.0,91356.0,0.0229574]
[1768263317392,1.6e-07,91368.0,91356.0,0.0229574]
[1768263317593,1.6e-07,91368.0,91362.0,0.010958]
[1768263317800,0.08201853,91371.0,91362.0,0.010958]
[1768263318100,0.08201853,91371.0,91360.0,0.010958]
[1768263319999,0.08201853,91371.0,91356.0,0.0229574]
[1768263320499,0.08201853,91371.0,91361.0,0.010958]
[1768263322694,0.0986,91378.0,91368.0,0.010957]
[1768263322899,0.0986,91378.0,91369.0,0.010957]
[1768263323496,0.0986,91378.0,91362.0,0.0229574]
[1768263323697,0.0986,91378.0,91369.0,0.010957]
[1768263324298,0.0986,91378.0,91366.0,0.010958]
[1768263325494,0.18061853,91378.0,91366.0,0.010958]
[1768263325688,0.18061853,91378.0,91364.0,0.00016416]
[1768263326396,0.08201853,91377.0,91364.0,0.00016416]
[1768263330502,0.08201853,91377.0,91364.0,0.01112216]
[1768263331101,0.08201853,91377.0,91366.0,0.010958]
[1768263331297,0.0986,91378.0,91364.0,0.00016416]
[1768263331298,0.0986,91378.0,91367.0,0.010957]
[1768263331901,0.0986,91378.0,91365.0,0.010958]
[1768263332096,0.18061853,91378.0,91365.0,0.010958]
[1768263332401,0.08201853,91377.0,91365.0,0.010958]
[1768263332591,0.18061853,91378.0,91365.0,0.010958]
[1768263332987,0.08201853,91377.0,91365.0,0.010958]
[1768263333403,0.08201853,91377.0,91364.0,0.00016416]
[1768263333603,0.08201853,91377.0,91367.0,0.010957]
[1768263334297,0.08201853,91377.0,91364.0,0.00016416]
[1768263334298,0.08201853,91384.0,91369.0,0.0229574]
[1768263334500,0.18061853,91384.0,91370.0,0.1497328]
[1768263335301,0.09168714,91382.0,91370.0,0.1606898]
[1768263336190,0.09168714,91382.0,91372.0,0.010957]
[1768263337500,5.331e-05,91382.0,91372.0,0.010957]
[1768263337706,5.331e-05,91382.0,91369.0,0.0229574]
[1768263337896,5.331e-05,91382.0,91370.0,0.1497328]
[1768263338298,0.09168714,91382.0,91370.0,0.1497328]
[1768263338500,0.09168714,91382.0,91370.0,0.1606898]
[1768263338908,0.09168714,91382.0,91370.0,0.1497328]
[1768263340693,0.09168714,91382.0,91367.0,0.010958]
[1768263340898,0.09168714,91382.0,91365.0,0.02345076]
[1768263341109,0.09168714,91382.0,91366.0,0.010958]
[1768263341308,0.09168714,91382.0,91367.0,0.02345076]
[1768263352509,0.09168714,91382.0,91367.0,0.03440776]
[1768263361545,0.09168714,91382.0,91367.0,0.02345076]
[1768263361745,0.09168714,91382.0,91364.0,0.00016416]
[1768263361944,0.10264314,91382.0,91364.0,0.00016416]
[1768263362348,0.09163383,91371.0,91352.0,0.09830701]
[1768263362647,0.09163383,91368.0,91353.0,0.010959]
[1768263365349,0.09372544,91368.0,91351.0,0.010959]
[1768263365844,0.09163383,91368.0,91350.0,0.11969222]
[1768263366149,0.09163383,91368.0,91353.0,0.010959]
[1768263369048,0.09163383,91368.0,91350.0,0.28038402]
[1768263371050,0.09163383,91368.0,91353.0,0.010959]
[1768263371849,0.09163383,91368.0,91355.0,0.010959]
[1768263373538,0.0986,91371.0,91352.0,0.09119102]
[1768263373738,0.18348953,91371.0,91360.0,0.010958]
[1768263374151,0.08488953,91370.0,91360.0,0.010958]
[1768263374347,0.08488953,91370.0,91357.0,0.010959]
[1768263375555,0.08488953,91370.0,91354.0,0.02136436]
[1768263375740,0.08488953,91370.0,91357.0,0.010959]
[1768263380961,0.08488953,91370.0,91357.0,0.010959]
[1768263389959,0.08488953,91370.0,91355.0,0.010959]
[1768263391961,0.08488953,91370.0,91356.0,0.010959]
[1768263394255,0.08488953,91370.0,91354.0,0.02136436]
[1768263394455,0.09584653,91370.0,91352.0,0.10938725]
[1768263394655,0.03695943,91367.0,91346.0,0.0986]
[1768263394865,0.03695943,91367.0,91353.0,0.010959]
[1768263395261,0.03695943,91367.0,91355.0,0.010959]
[1768263396165,0.03695943,91367.0,91357.0,0.010959]
[1768263396961,0.03695943,91367.0,91355.0,0.010959]
[1768263399569,0.03695943,91367.0,91356.0,0.010959]
[1768263399772,0.04358501,91370.0,91358.0,0.010958]
[1768263399956,0.04358501,91370.0,91354.0,0.02019835]
[1768263400162,0.0986,91371.0,91360.0,0.02019835]
[1768263400459,0.0986,91371.0,91363.0,0.010958]
[1768263401067,0.0986,91371.0,91360.0,0.03115635]
[1768263401461,0.0986,91371.0,91362.0,0.010958]
[1768263401661,0.0986,91371.0,91363.0,0.010958]
[1768263402870,0.00021747,91382.0,91362.0,0.02019835]
[1768263403077,0.00021747,91382.0,91373.0,0.010957]
[1768263403270,0.0986,91387.0,91372.0,0.02019835]
[1768263403573,0.0986,91387.0,91380.0,0.010956]
[1768263403776,0.0986,91387.0,91377.0,0.010956]
[1768263406068,0.0986,91387.0,91378.0,0.010956]
[1768263408574,3.9e-07,91385.0,91379.0,0.010956]
[1768263408877,0.0986,91389.0,91375.0,0.02019835]
[1768263408878,0.0986,91389.0,91376.0,0.010956]
[1768263409070,0.0986,91389.0,91376.0,0.03115435]
[1768263411975,0.0986,91389.0,91378.0,0.010956]
[1768263413878,0.0986,91389.0,91380.0,0.010956]
[1768263419584,0.0986,91389.0,91382.0,0.010956]
[1768263420179,0.03893951,91401.0,91377.0,0.02019835]
[1768263420479,0.03893951,91399.0,91384.0,0.010955]
[1768263423380,0.03893951,91399.0,91385.0,0.010955]
[1768263424385,0.03893951,91399.0,91383.0,0.010956]
[1768263425086,0.03893951,91399.0,91381.0,0.02019835]
[1768263426283,0.03893951,91399.0,91384.0,0.010955]
[1768263426682,0.0986,91400.0,91384.0,0.010955]
[1768263426683,0.0986,91400.0,91392.0,0.010954]
[1768263426880,0.00547019,91405.0,91391.0,0.010955]
[1768263426881,0.04726132,91401.0,91391.0,0.010955]
[1768263427074,0.14586132,91400.0,91384.0,0.01990357]
[1768263427273,1.9e-07,91405.0,91389.0,0.01990357]
[1768263427583,0.0986,91418.0,91405.0,0.01990357]
[1768263428170,0.0986,91418.0,91401.0,0.08910201]
[1768263428171,0.0986,91420.0,91407.0,0.01990357]
[1768263428373,0.00240628,91428.0,91415.0,0.010952]
[1768263428572,0.04520781,91426.0,91415.0,0.010952]
[1768263428772,0.04520781,91426.0,91412.0,0.010952]
[1768263428978,0.04520781,91426.0,91409.0,0.01990357]
[1768263429386,0.00177882,91425.0,91409.0,0.01990357]
[1768263432272,0.02942748,91413.0,91393.0,0.01990357]
[1768263432472,0.02942748,91413.0,91388.0,0.14856076]
[1768263432473,0.01939537,91412.0,91399.0,0.010954]
[1768263432678,0.01939537,91412.0,91394.0,0.11850357]
[1768263432679,0.01939537,91412.0,91396.0,0.03085757]
[1768263432887,0.0208844,91419.0,91397.0,0.01990357]
[1768263433075,0.0187873,91418.0,91398.0,0.010954]
[1768263433477,0.0187873,91418.0,91399.0,0.022068]
[1768263435186,0.01591967,91416.0,91399.0,0.022068]
[1768263436486,0.01591967,91416.0,91395.0,0.010954]
[1768263436692,0.010952,91415.0,91396.0,0.09856]
[1768263436891,0.0128915,91414.0,91396.0,0.120628]
[1768263437089,0.0128915,91414.0,91397.0,0.022068]
[1768263437299,0.0128915,91414.0,91397.0,0.033022]
[1768263437993,0.0128915,91414.0,91398.0,0.022068]
[1768263438194,0.01200236,91417.0,91398.0,0.022068]
[1768263440299,0.01200236,91417.0,91399.0,0.010954]
[1768263440598,0.01200236,91417.0,91399.0,0.033022]
[1768263440896,0.01200236,91417.0,91400.0,0.022068]
[1768263441994,0.01200236,91417.0,91401.0,0.033021]
[1768263442294,0.01200236,91417.0,91402.0,0.022068]
[1768263442598,0.010951,91424.0,91406.0,0.022068]
[1768263442906,0.01829932,91424.0,91406.0,0.022068]
[1768263443096,0.00734832,91423.0,91406.0,0.022068]
[1768263443789,0.00650668,91421.0,91406.0,0.022068]
[1768263444694,0.01457897,91425.0,91409.0,0.022068]
[1768263444895,0.00362797,91425.0,91409.0,0.022068]
[1768263446397,0.010951,91422.0,91409.0,0.022068]
[1768263448591,0.010951,91420.0,91409.0,0.022068]
[1768263449500,0.16053843,91420.0,91409.0,0.022068]
[1768263452190,0.010951,91422.0,91409.0,0.022068]
[1768263456102,0.109511,91422.0,91409.0,0.022068]
[1768263456804,0.010951,91421.0,91409.0,0.022068]
[1768263457197,0.09856,91422.0,91409.0,0.022068]
[1768263458004,0.14958743,91420.0,91409.0,0.022068]
[1768263462306,0.09856,91422.0,91409.0,0.022068]
[1768263463107,0.09856,91422.0,91410.0,0.02099095]
[1768263469814,0.09856,91422.0,91401.0,0.02099095]
[1768263470011,0.09856,91422.0,91404.0,0.02099095]
[1768263470204,0.14958743,91420.0,91404.0,0.02099095]
[1768263472315,0.109511,91422.0,91404.0,0.02099095]